[Event "Ramat Gan Masters-A Winter 2023"]
[Site "Ramat Gan/ISR"]
[Date "2023.01.17"]
[Round "1.4"]
[White "Noy, Eyal"]
[Black "Hasson Shreger, Shalev"]
[Result "0-1"]
[Annotator "TA"]
[ECO "A58"]
[WhiteElo "2117"]
[BlackElo "1823"]
[PlyCount "148"]
[EventDate "2023.01.17"]
[EventType "swiss"]
[SourceTitle "playchess.com"]
[Source "ChessBase"]
[SourceQuality "1"]
[TimeControl "5400+30"]

{[%evp 22,147,65,18,33,35,48,18,21,-18,15,-88,41,35,59,51,93,35,41,42,63,-92,-75,-91,-79,-85,-95,-66,-79,-136,-26,-45,-27,-33,-26,-7,-3,-13,42,-140,-140,-145,0,0,56,21,81,0,0,-28,-34,-35,-50,-40,0,0,0,-1337,-1216,-1208,-950,-1603,-482,-494,-484,-761,-761,-741,-583,-571,-571,-502,-466,-2278,-2100,-2052,-1656,-1479,-1131,-2431,-2266,-12793,-12429,-29955,-29954,-6590,-6299,-29964,-29963,-29964,-29952,-5625,-5609,-29979,-29980,-29980,-29981,-29981,-29982,-29982,-29983,-29983,-29984,-29984,-29985,-29985,-29986,-29987,-29988,-29988,-29989,-29989,-29990,-29990,-29991,-29992,-29993,-29993,-29991,-29991,-29992,-29992,-29993,-29993,-29994,-29995,-29996,-29999]} 1. d4 {[%emt 0:22:41]} Nf6 {[%emt 0:00:13]} 2. c4 {[%emt 0:01:26]} g6 {[%emt 0:00:05]} 3. Nf3 {[%emt 0:00:04]} Bg7 {[%emt 0:00:05]} 4. g3 {[%emt 0:00:01]} O-O {[%emt 0:00:29]} 5. Bg2 {[%emt 0:00:01]} c5 {[%emt 0:00:19]} 6. d5 {[%emt 0:00:04]} d6 {[%emt 0:00:35]} 7. O-O {[%emt 0:00:07]} b5 {[%emt 0:00:25]} 8. cxb5 {[%emt 0:00:06]} a6 {[%emt 0:00:13]} 9. Nc3 {[%emt 0:01:17]} axb5 {[%emt 0:00:27]} 10. Nxb5 {[%emt 0:00:02]} Ba6 {[%emt 0:00:38]} 11. Nc3 {[%emt 0:00:03]} Nbd7 {[%emt 0:00:09]} 12. h3 {[%emt 0:00:53]} (12. Qc2 $14) 12... Qb6 {[%emt 0:01:37] A58: Benko/Volga Gambit: Lines with 5 bxa6.} 13. Qc2 {[%emt 0:00:40]} Rfb8 {[%emt 0:01:15]} 14. Rd1 {[%emt 0:00:30]} Ne8 {[%emt 0:01:58] The position is equal.} 15. e4 {[%emt 0:04:23]} Nc7 {[%emt 0:01:11] [#]} 16. Rb1 $146 {[%emt 0:07:42]} (16. b3 $11 {remains equal.}) ({Predecessor:} 16. Nd2 Ne5 17. Bf1 Bxf1 18. Rxf1 Nb5 19. f4 Nd7 20. Nc4 Qa6 21. Nxb5 Qxb5 22. Rf3 Nb6 23. Na3 {0-1 Friscic,M (1668)-Novosel,L (2255) CRO-ch U17/19 2022 (9)}) 16... Nb5 {[%emt 0:08:44]} ({Black should play} 16... Bxc3 $1 $17 17. Qxc3 Be2) 17. Nxb5 $1 $14 {[%emt 0:01:45]} Qxb5 {[%emt 0:02:30]} 18. b3 {[%emt 0:01:43] Repels Qc4} c4 {[%emt 0:12:56]} 19. Nd4 {[%emt 0:00:47]} (19. Be3 $16) 19... Bxd4 {[%emt 0:00:31]} 20. Rxd4 {[%emt 0:00:09]} Qc5 {[%emt 1:06:10]} 21. Qd1 {[%emt 0:02:48]} (21. Be3 $1 $14 cxb3 22. Qd2) 21... c3 $17 {[%emt 0:00:00] White must now prevent ...c2.} 22. Ra1 {[%emt 0:00:21] [#]} Be2 $1 {[%emt 0:00:00][%mdl 64] Deflection} 23. Qxe2 {[%emt 0:00:07]} Qxd4 {[%emt 0:00:00]} 24. Be3 {[%emt 0:00:14]} Qb4 {[%emt 0:00:00] Black is more active.} 25. Qc2 {[%emt 0:00:47]} (25. Rc1 $142) 25... Rc8 {[%emt 0:00:00]} (25... Nc5 $17 {[%cal Rc5b3] ...Nxb3! would be deadly.} 26. Rc1 Qa5) 26. Bf1 $1 $11 {[%emt 0:00:33]} Ne5 {[%emt 0:00:00]} 27. Kg2 {[%emt 0:01:21]} Qa3 {[%emt 0:00:00]} 28. Bc1 {[%emt 0:07:42] Repels Qb2} Qa5 {[%emt 0:00:00]} 29. a4 {[%emt 0:02:24] [#]} f5 {[%emt 0:00:00]} 30. Ba3 $2 {[%emt 0:06:04]} (30. Bf4 $14 {stays ahead.}) 30... fxe4 $17 {[%emt 0:00:00]} 31. Qxe4 {[%emt 0:03:16] [#]} c2 {[%emt 0:00:00]} (31... Rab8 $1 $17 {[%cal Rb8b3]} 32. Bc4 Re8) 32. Bb4 $11 {[%emt 0:01:47]} Qc7 {[%emt 0:00:00]} (32... c1=Q 33. Rxc1 Qa7 34. Rxc8+ Rxc8 35. a5 $16) (32... Qb6 $11 33. Rc1 Nf3) 33. Rc1 $14 {[%emt 0:00:39][%mdl 1024] White has compensation.} Rab8 {[%emt 0:00:00]} (33... Kf8 $11) 34. f4 {[%emt 0:02:31]} (34. Ba6 $16) 34... Nd7 $36 {[%emt 0:00:00][%mdl 2048] Black is pushing.} 35. Bb5 {[%emt 0:04:57]} (35. Ba6 $5 {[%cal Ra6c8]} Nf6 36. Qe6+ Kf8 37. Bd2 $11 (37. Bxd6 Qxd6 38. Bxc8 Qc5 $11)) 35... Nf6 {[%emt 0:00:00]} 36. Qe6+ {[%emt 0:01:45]} Kf8 {[%emt 0:00:00] aiming for ...Qb7.} 37. Bd2 {[%emt 0:02:46]} Qc5 {[%emt 0:00:00] And now ...Qd4 would win.} (37... Rxb5 $5 38. axb5 Qb7 $11) 38. Bc4 {[%emt 0:00:19] Threatens to win with f5. A strong pair of Bishops.} Qd4 {[%emt 0:00:00] Some like it hot} 39. Rxc2 {[%emt 0:01:40][%mdl 8192] [#] White is now going downhill.} (39. Be3 $11 Qd1 40. f5) 39... Rxc4 $1 $19 {[%emt 0:00:00][%mdl 512]} 40. bxc4 {[%emt 0:00:09]} Qd3 {[%emt 0:00:00]} 41. Ra2 {[%emt 0:00:23]} Qb1 {[%emt 0:00:00]} (41... Qxc4 $142 42. Ra1 Rb2) 42. Ra3 {[%emt 0:01:12] [#] Re3 is the strong threat.} Rb2 $1 {[%emt 0:00:00]} ({And not} 42... Ne4 43. Re3 Nxd2 44. Qxe7+ (44. Re1 Qb7 $11) 44... Kg8 45. Qe6+ Kh8 46. Qf6+ Kg8 47. Qe6+ (47. Qxd6 Qf1+ 48. Kh2 Qf2+ 49. Kh1 Rb1+) 47... Kg7 48. Qe7+ (48. Re1 Qb2 $11) 48... Kh8 49. Qf6+ Kg8 50. Qe6+ $11 (50. Qxd6 Qf1+ 51. Kh2 Qf2+ 52. Kh1 Rb1+)) 43. Qe3 {[%emt 0:05:05]} (43. Re3 $142 Rxd2+ 44. Re2 Rxe2+ 45. Qxe2) 43... Ne4 {[%emt 0:00:00][%cal Bf6e4,Be4d2,Bd2c4,Bc4e3][%mdl 32]} 44. Rd3 {[%emt 0:00:18] [#]} Qxd3 $3 {[%emt 0:00:00][%mdl 576] Remove Defender} 45. Qxd3 {[%emt 0:00:07]} Rxd2+ {[%emt 0:00:00]} ({Don't take} 45... Nxd2 46. Kg1 $18) 46. Qxd2 {[%emt 0:00:05]} Nxd2 {[%emt 0:00:00][%mdl 4096] Endgame KN-KP} 47. a5 {[%emt 0:00:27]} (47. c5 $142 dxc5 48. a5) 47... Nxc4 {[%emt 0:00:00]} 48. a6 {[%emt 0:00:03]} Ne3+ {[%emt 0:00:00]} 49. Kf3 {[%emt 0:00:09]} Nxd5 {[%emt 0:00:00]} 50. g4 {[%emt 0:04:10]} Ke8 {[%emt 0:00:00]} 51. h4 {[%emt 0:02:39]} Kd7 {[%emt 0:00:00]} 52. a7 {[%emt 0:01:11]} Nc7 {[%emt 0:00:00]} 53. Ke4 {[%emt 0:02:16]} Kc6 {[%emt 0:00:00]} 54. f5 {[%emt 0:00:36]} gxf5+ {[%emt 0:00:00]} 55. Kxf5 {[%emt 0:00:10] KN-K3P} e6+ {[%emt 0:00:00]} 56. Kf6 {[%emt 0:01:16]} e5 {[%emt 0:00:17] ( -> ...e4)} 57. h5 {[%emt 0:01:10]} e4 {[%emt 0:00:31] Black mates.} 58. g5 {[%emt 0:00:10]} e3 {[%emt 0:00:13]} 59. g6 {[%emt 0:00:05]} hxg6 {[%emt 0:00:44]} 60. hxg6 {[%emt 0:00:11] KN-KPP} e2 {[%emt 0:00:12]} 61. g7 {[%emt 0:00:04]} e1=Q {[%emt 0:00:08]} 62. g8=Q {[%emt 0:00:03]} Qe5+ {[%emt 0:00:17]} 63. Kf7 {[%emt 0:00:17]} Qe6+ {[%emt 0:00:07]} 64. Kf8 {[%emt 0:00:19]} Qf6+ {[%emt 0:01:01]} 65. Qf7 {[%emt 0:00:08]} Ne6+ {[%emt 0:00:13]} 66. Kg8 {[%emt 0:00:06]} Qd8+ {[%emt 0:00:05]} 67. Kh7 {[%emt 0:00:08]} Ng5+ {[%emt 0:00:03]} 68. Kg7 {[%emt 0:00:16]} Nxf7 {[%emt 0:00:05]} 69. Kxf7 {[%emt 0:00:06]} d5 {[%emt 0:00:21]} 70. Ke6 {[%emt 0:00:07]} d4 {[%emt 0:00:05]} 71. Kf5 {[%emt 0:00:04]} d3 {[%emt 0:00:03]} 72. Ke4 {[%emt 0:00:05]} d2 {[%emt 0:00:06]} 73. Ke5 {[%emt 0:00:06]} d1=Q {[%emt 0:00:05]} 74. Ke6 {[%emt 0:00:07]} Q1d5# {[%emt 0:00:09] Weighted Error Value: White=1.02/Black=0.46} 0-1

[Event "Ramat Gan Masters-A Winter 2023"]
[Site "Ramat Gan/ISR"]
[Date "2023.01.17"]
[Round "1.5"]
[White "Medovoy, Yaniv"]
[Black "Gershkowich, David"]
[Result "0-1"]
[Annotator "TA"]
[ECO "B34"]
[WhiteElo "1842"]
[BlackElo "2188"]
[PlyCount "86"]
[EventDate "2023.01.17"]
[EventType "swiss"]
[SourceTitle "playchess.com"]
[Source "ChessBase"]
[SourceQuality "1"]
[TimeControl "5400+30"]

{[%evp 14,86,23,0,16,-70,-76,-76,-68,-70,-13,0,-3,-32,-19,-26,-31,-35,-29,-120,-116,-126,-133,-153,-137,-121,-49,-64,0,-72,-93,-86,-81,-77,-55,-63,-59,-57,-33,-29,-15,-19,-16,-37,-37,-27,-37,-100,-95,-674,-647,-610,-533,-890,-844,-1279,-1274,-1484,-1533,-1538,-1456,-9189,-5314,-29987,-29988,-29988,-29989,-29989,-29990,-29990,-29991,-29991,-29989,-29993,-29994]} 1. e4 {[%emt 0:00:02]} c5 {[%emt 0:00:12]} 2. Nc3 {[%emt 0:00:06]} g6 {[%emt 0:00:14]} 3. d4 {[%emt 0:00:02]} Bg7 {[%emt 0:00:15]} 4. Nf3 {[%emt 0:02:12]} cxd4 {[%emt 0:00:11]} 5. Nxd4 {[%emt 0:00:03]} Nc6 {[%emt 0:00:17]} 6. Nb3 {[%emt 0:10:36]} Nf6 {[%emt 0:01:05]} 7. Be3 {[%emt 0:00:12]} O-O {[%emt 0:00:56]} 8. f3 {[%emt 0:00:51]} a5 {[%emt 0:00:54] B34: Sicilian: Accelerated Dragon with 5 Nc3: sidelines.} 9. Be2 {[%emt 0:02:53]} (9. a3 $11) 9... a4 $15 {[%emt 0:01:06]} 10. Nd4 {[%emt 0:01:11] [#]} a3 $146 {[%emt 0:02:37] Black is better.} ({Predecessor:} 10... Qb6 11. Nxc6 Qxc6 12. O-O a3 13. Bb5 Qc7 14. Qd2 axb2 15. Rab1 d6 16. Bd4 Be6 17. Rxb2 {½-½ Varga,C-Kovacs,T Sarospatak op-A 1995 (8)}) 11. b3 {[%emt 0:07:32]} Qa5 {[%emt 0:03:53]} ({Black should try} 11... d5 $1 $15 12. Nxc6 bxc6) 12. Qd2 $11 {[%emt 0:01:53]} d5 {[%emt 0:03:09] Strongly threatening ...dxe4.} 13. exd5 {[%emt 0:24:39]} Nxd5 {[%emt 0:02:27]} 14. Nxd5 {[%emt 0:02:33]} Nxd4 {[%emt 0:04:54]} 15. Bxd4 {[%emt 0:11:50]} Bxd4 {[%emt 0:01:54]} 16. c3 {[%emt 0:09:30] [#]} (16. Rd1 $11 Qxd2+ 17. Rxd2) 16... Bg7 $1 $17 {[%emt 0:03:12]} 17. b4 {[%emt 0:04:34]} Qd8 {[%emt 0:00:28]} 18. Rd1 {[%emt 0:00:14][%cal Od5f6] [#]} e6 $1 {[%emt 0:02:05]} 19. Ne3 {[%emt 0:00:43]} Qxd2+ {[%emt 0:04:58]} (19... Qf6 $17 20. Nc4 b5) 20. Kxd2 $15 {[%emt 0:00:01]} Bh6 {[%emt 0:00:32]} (20... Bd7 $1 $15 21. b5 Rac8) 21. Bc4 {[%emt 0:01:11]} (21. Bb5 $11) 21... Bd7 $17 {[%emt 0:02:14]} 22. Ke2 {[%emt 0:02:05]} Ba4 {[%emt 0:00:59] ...Bxe3 would be deadly. A strong pair of Bishops.} 23. Rd3 {[%emt 0:01:40]} Rfc8 {[%emt 0:01:38]} 24. Bb3 $1 {[%emt 0:05:35]} Bxb3 {[%emt 0:02:06]} 25. axb3 {[%emt 0:00:01]} Bg7 {[%emt 0:00:29]} 26. Nc4 {[%emt 0:00:35]} a2 {[%emt 0:15:16]} 27. Nb6 {[%emt 0:07:40][%csl LRa8,LRc8]} Bxc3 {[%emt 0:04:51]} ({Resist} 27... a1=B 28. Nxc8 Bgxc3 29. Nd6 $16) 28. Rxc3 {[%emt 0:01:05]} Rxc3 {[%emt 0:00:03]} 29. Nxa8 $11 {[%emt 0:00:08][%mdl 4096] Endgame KRN-KR} Rc2+ {[%emt 0:01:45]} 30. Kd3 {[%emt 0:00:22]} ({Better is} 30. Ke3 $1 $15) 30... Rxg2 $17 {[%emt 0:00:12]} 31. Kc4 $2 {[%emt 0:01:52][%mdl 8192] [#] Now White is beyond hope.} (31. Ra1 $17) 31... Rxh2 $3 $19 {[%emt 0:01:35][%mdl 576] Deflection, Promotion} 32. Ra1 {[%emt 0:00:56]} h5 {[%emt 0:01:18][%cal Bh7h5,Bh5h4,Bh4h3,Bh3h2][%mdl 32]} 33. b5 {[%emt 0:00:51]} h4 {[%emt 0:00:47]} 34. Kc5 {[%emt 0:00:42]} h3 {[%emt 0:01:04]} 35. Kb6 {[%emt 0:00:25]} Rb2 {[%emt 0:00:43]} 36. Kxb7 {[%emt 0:00:42]} h2 {[%emt 0:00:11] aiming for ...Rb1.} 37. b6 {[%emt 0:00:21]} Rb1 {[%emt 0:00:39]} 38. Kc8 {[%emt 0:00:43]} Rxa1 {[%emt 0:01:23] Black mates.} (38... h1=R $2 {too greedy.} 39. Rxa2 Rxb3 40. b7 $19) 39. b7 {[%emt 0:00:08]} Rc1+ {[%emt 0:01:49]} 40. Kd7 {[%emt 0:00:21]} a1=Q {[%emt 0:00:37]} 41. b8=Q+ {[%emt 0:00:11]} Kg7 {[%emt 0:00:41]} 42. Qxh2 {[%emt 0:00:12]} Rd1+ {[%emt 0:01:04]} 43. Kc7 {[%emt 0:00:38]} Qa7+ {[%emt 0:00:23] Artfully played by Gershkowich.   Weighted Error Value: White=1.05/Black=0.07 (flawless)} 0-1

[Event "Ramat Gan Masters-A Winter 2023"]
[Site "Ramat Gan/ISR"]
[Date "2023.01.17"]
[Round "1.6"]
[White "Uritsky, Yonathan"]
[Black "Shapira, Avner"]
[Result "1-0"]
[Annotator "TA"]
[ECO "B52"]
[WhiteElo "2047"]
[BlackElo "1814"]
[PlyCount "77"]
[EventDate "2023.01.17"]
[EventType "swiss"]
[SourceTitle "playchess.com"]
[Source "ChessBase"]
[SourceQuality "1"]
[TimeControl "5400+30"]

{[%evp 21,77,10,17,0,14,-5,59,0,68,70,70,-18,-9,-13,-18,-17,-35,-47,-35,-78,-59,-100,-93,-218,-221,-217,-210,-211,-185,-189,-189,-195,-181,-188,-147,-213,-222,-205,-199,-198,206,206,203,203,191,197,302,290,766,751,2295,2206,29982,29983,29989,29990,29994,1002]} 1. e4 {[%emt 0:00:10]} c5 {[%emt 0:00:03]} 2. Nf3 {[%emt 0:00:22]} d6 {[%emt 0:00:05]} 3. Bb5+ {[%emt 0:00:07]} Bd7 {[%emt 0:00:18]} 4. Bxd7+ {[%emt 0:00:08]} Qxd7 {[%emt 0:01:23]} 5. c4 {[%emt 0:00:08]} Nc6 {[%emt 0:00:07]} 6. d4 {[%emt 0:00:04]} cxd4 {[%emt 0:00:07]} 7. Nxd4 {[%emt 0:00:04]} Nf6 {[%emt 0:00:07]} 8. Nc3 {[%emt 0:00:51]} e6 {[%emt 0:01:07]} 9. O-O {[%emt 0:02:16]} Be7 {[%emt 0:00:44]} 10. b3 {[%emt 0:02:37]} a6 {[%emt 0:00:45]} 11. Bb2 {[%emt 0:02:02]} O-O {[%emt 0:01:15]} 12. Rc1 {[%emt 0:04:11] B52: Sicilian: Moscow Variation with 3...Bd7.} Rfd8 {[%emt 0:07:48]} 13. Re1 {[%emt 0:03:22] [#]} Bf8 $146 {[%emt 0:07:41]} (13... Nxd4 $11 14. Qxd4 b5) ({Predecessor:} 13... Nxd4 14. Qxd4 Ne8 15. Na4 Bf6 16. Qd2 Qc6 17. Bc3 Bxc3 18. Rxc3 Rac8 19. f3 h6 20. Rec1 Nf6 {½-½ Burnett,R (2344)-Bregadze,L (2428) Saint Louis IM 2014 (5)}) 14. Qd2 {[%emt 0:02:59]} ({White should play} 14. Na4 $14) 14... b6 {[%emt 0:33:53]} (14... Nxd4 $11 15. Qxd4 b5) 15. Na4 $1 $14 {[%emt 0:07:07]} Rab8 {[%emt 0:01:23]} 16. Re3 {[%emt 0:01:49] White is much more active.} (16. Nxc6 $14 Qxc6 17. Bxf6 gxf6 18. Nb2) 16... Ne5 $11 {[%emt 0:03:08]} 17. Nc3 {[%emt 0:02:56]} b5 {[%emt 0:03:14]} 18. cxb5 {[%emt 0:03:04]} axb5 {[%emt 0:00:03][%cal Ba6b5,Bb5b4][%mdl 32]} 19. h3 {[%emt 0:02:13]} Ng6 {[%emt 0:16:57]} 20. Rd1 {[%emt 0:11:10]} b4 {[%emt 0:03:58]} 21. Nce2 {[%emt 0:02:09]} e5 {[%emt 0:04:11]} 22. Nc2 {[%emt 0:01:52]} (22. Nf3 $17 {keeps fighting.}) 22... Qb7 $1 $19 {[%emt 0:00:06]} ({Worse is} 22... d5 23. exd5 Bc5 24. Rf3 $17 (24. Rxe5 $2 Nxe5 25. Ne3 Re8 $19)) 23. Ng3 {[%emt 0:04:48]} d5 $1 {[%emt 0:01:08]} 24. Qe1 {[%emt 0:05:32]} Bc5 {[%emt 0:02:28]} 25. Red3 {[%emt 0:07:57]} Nf4 {[%emt 0:00:37]} ({Don't play} 25... Nxe4 26. Nxe4 Be7 27. Ng3 $16) 26. R3d2 {[%emt 0:05:10]} d4 {[%emt 0:00:03]} ({But not} 26... Nxe4 27. Nxe4 d4 28. f3 $16 (28. Nxc5 $2 Qxg2#)) 27. Kh2 {[%emt 0:01:53]} Qa8 {[%emt 0:02:01]} 28. f3 {[%emt 0:02:56]} (28. Ra1 $17 {was called for.}) 28... Qxa2 {[%emt 0:00:35]} 29. Nxd4 {[%emt 0:00:59]} exd4 {[%emt 0:02:19]} 30. Bxd4 {[%emt 0:00:01] [#]} Qa5 {[%emt 0:00:03][%mdl 8192]} (30... Qxd2 $1 $19 31. Qxd2 Ne6) 31. Bxc5 $18 {[%emt 0:00:35]} Rxd2 {[%emt 0:00:37]} 32. Qxd2 {[%emt 0:00:01]} Qxc5 {[%emt 0:00:10]} 33. Qxf4 {[%emt 0:00:02]} Rc8 {[%emt 0:01:46]} (33... Re8 $142 34. Qd6 Qxd6 35. Rxd6 Rb8) 34. Nf5 {[%emt 0:00:59]} g6 $2 {[%emt 0:01:47]} (34... Ra8 35. e5 Nh5) 35. Nd6 {[%emt 0:00:55][%mdl 64] Discovered Attack} Kg7 {[%emt 0:02:10]} 36. e5 {[%emt 0:01:37]} Nh5 {[%emt 0:01:13]} 37. Qxf7+ {[%emt 0:00:09] White mates.} Kh6 {[%emt 0:00:04]} 38. Qe7 {[%emt 0:04:34]} Rc7 {[%emt 0:01:47] [#]} 39. Nf5+ $1 {[%emt 0:00:11][%mdl 512] Weighted Error Value: White=0.21 (precise) /Black=0.46} 1-0

[Event "Ramat Gan Masters-A Winter 2023"]
[Site "Ramat Gan/ISR"]
[Date "2023.01.17"]
[Round "1.7"]
[White "Soybert, Ori"]
[Black "Rozen, Guy"]
[Result "1-0"]
[Annotator "TA"]
[ECO "B12"]
[WhiteElo "1736"]
[BlackElo "2027"]
[PlyCount "91"]
[EventDate "2023.01.17"]
[EventType "swiss"]
[SourceTitle "playchess.com"]
[Source "ChessBase"]
[SourceQuality "1"]
[TimeControl "5400+30"]

{[%evp 9,91,0,0,-20,16,9,6,0,8,0,0,-29,-22,-48,-53,-50,-17,-85,-78,-103,85,102,178,159,145,150,179,149,214,154,176,178,229,219,230,222,220,200,221,145,147,145,153,140,189,156,580,574,654,641,660,657,658,533,945,906,817,878,879,643,653,649,628,639,905,846,1195,956,916,839,973,926,1858,1759,29992,29993,29993,29992,29992,1241,29992,29993,29993,29994]} 1. e4 {[%emt 0:00:02][%cal Be2e4,Be4e5][%mdl 32]} c6 {[%emt 0:00:19]} 2. d4 {[%emt 0:00:06]} d5 {[%emt 0:00:03]} 3. e5 {[%emt 0:00:05]} Bf5 {[%emt 0:00:19]} 4. g4 {[%emt 0:00:06]} Be4 {[%emt 0:00:28]} 5. f3 {[%emt 0:00:06]} Bg6 {[%emt 0:00:02]} 6. e6 {[%emt 0:00:15] B12: Caro-Kann: Advance Variation.} Qd6 {[%emt 0:00:27]} 7. exf7+ {[%emt 0:00:14]} Bxf7 {[%emt 0:00:05]} 8. f4 {[%emt 0:00:25] The position is equal. 8.Nc3 is more advanced technology.} Nf6 {[%emt 0:08:59]} 9. Nc3 {[%emt 0:06:48]} Nbd7 {[%emt 0:11:49]} (9... Qe6+ 10. Be2 $14) 10. Nh3 {[%emt 0:27:29]} O-O-O {[%emt 0:28:29] [#]} (10... Qe6+ 11. Be2 $14) 11. Ng5 $146 {[%emt 0:16:00]} ({Predecessor:} 11. Be2 e6 12. Be3 Bg6 13. Qd2 Ne4 14. Nxe4 Bxe4 15. Rg1 Be7 16. O-O-O Rdf8 17. Qa5 {½-½ Fuentes,L-Tristan,M ESP corr Spain 1992}) 11... Bg8 {[%emt 0:02:45]} 12. h3 {[%emt 0:04:15]} h5 {[%emt 0:28:21]} 13. gxh5 {[%emt 0:09:17]} (13. Rg1 $11) 13... Nxh5 $17 {[%emt 0:02:05]} 14. Qf3 {[%emt 0:02:09] [#]} e5 $2 {[%emt 0:01:26]} 15. fxe5 $16 {[%emt 0:01:19] White is more active.} Nxe5 {[%emt 0:00:05]} 16. dxe5 $18 {[%emt 0:02:30]} Qxe5+ {[%emt 0:00:01]} 17. Be2 {[%emt 0:02:48]} Be7 {[%emt 0:03:46]} 18. Rg1 {[%emt 0:04:18]} Bc5 {[%emt 0:04:40]} (18... d4 $16) 19. Qg4+ {[%emt 0:01:50]} Kb8 {[%emt 0:00:48] [#]} 20. Rf1 {[%emt 0:01:36]} (20. Nf3 Qd6 $16) 20... d4 {[%emt 0:00:12]} (20... Bd6 $142 21. Bd2 d4) 21. Rf5 {[%emt 0:02:49]} Qe7 {[%emt 0:03:14]} 22. Nce4 {[%emt 0:04:03]} Bb4+ {[%emt 0:00:01]} 23. c3 {[%emt 0:00:23]} dxc3 {[%emt 0:02:28]} 24. Bf4+ {[%emt 0:01:29]} ({Don't do} 24. Nxc3 $6 Re8 $16) 24... Ka8 {[%emt 0:00:48]} 25. bxc3 {[%emt 0:00:37]} Nf6 {[%emt 0:00:04]} 26. Qf3 {[%emt 0:01:01]} Bd5 {[%emt 0:00:17]} (26... Rd5 $16 {was worth a try.} 27. Rxd5 Bxd5) 27. Re5 {[%emt 0:00:28]} Qf8 {[%emt 0:00:44] This move loses the game for Black.} (27... Nxe4 $16 {is a better chance.} 28. Nxe4 (28. Rxe7 Nxc3 29. Qe3 Nxe2+ 30. Kxe2 Bxe7 $16) 28... Qh4+ 29. Bg3 Bxe4 30. Bxh4 (30. Rxe4 Bxc3+ {[%mdl 64] Double Attack} 31. Kf2 Bd4+ 32. Ke1 Bc3+ 33. Kf2 Bd4+ 34. Ke1 Qxh3 $11 {[%mdl 64] Decoy}) 30... Bxf3 31. cxb4 Rxh4) 28. cxb4 {[%emt 0:00:25]} Qxb4+ {[%emt 0:00:02]} 29. Qc3 {[%emt 0:00:58]} Qa4 {[%emt 0:00:23]} 30. Bd1 {[%emt 0:01:46]} Qa6 {[%emt 0:00:58]} 31. Rb1 {[%emt 0:05:22]} Rhe8 {[%emt 0:00:28]} 32. Be2 {[%emt 0:01:30]} b5 {[%emt 0:00:47]} 33. Nc5 {[%emt 0:01:06]} Qc8 {[%emt 0:00:07]} 34. Nd3 {[%emt 0:00:41]} Bc4 {[%emt 0:00:46]} 35. Rd1 {[%emt 0:01:23]} Nd5 {[%emt 0:00:08]} 36. Qc1 {[%emt 0:00:51]} Rf8 {[%emt 0:00:53]} 37. Ne6 {[%emt 0:00:34]} Rh8 {[%emt 0:01:10]} 38. Nxd8 {[%emt 0:00:16]} Qxd8 {[%emt 0:00:24]} 39. Bg5 {[%emt 0:01:05]} Qd6 {[%emt 0:00:03]} 40. h4 {[%emt 0:00:55]} Bxd3 {[%emt 0:00:49]} 41. Rxd3 {[%emt 0:00:11]} Qxe5 {[%emt 0:00:36]} 42. Qxc6+ {[%emt 0:00:02]} Kb8 {[%emt 0:00:08]} 43. Qxb5+ {[%emt 0:00:12]} Kc7 {[%emt 0:00:16]} 44. Qxd5 {[%emt 0:00:18]} (44. Qc5+ $142 Kb7 45. Rb3+ Nb6 46. Qxe5 Rf8 47. Qe7+ Ka8 48. Qxf8+ Kb7 49. Bf3+ Ka6 50. Qa3+ {[%mdl 64] Skewer} Na4 51. Qxa4#) 44... Qa1+ {[%emt 0:00:10]} 45. Kf2 {[%emt 0:00:43]} Rf8+ {[%emt 0:00:04]} 46. Kg2 {[%emt 0:00:07] A cool game by Soybert.   Weighted Error Value: White=0.22 (precise) /Black=0.42} 1-0

[Event "Ramat Gan Masters-A Winter 2023"]
[Site "Ramat Gan/ISR"]
[Date "2023.01.17"]
[Round "1.8"]
[White "Levitan, Ronit"]
[Black "Lapushnian, Maya"]
[Result "1-0"]
[Annotator "TA"]
[ECO "C00"]
[WhiteElo "2064"]
[BlackElo "1707"]
[PlyCount "49"]
[EventDate "2023.01.17"]
[EventType "swiss"]
[SourceTitle "playchess.com"]
[Source "ChessBase"]
[SourceQuality "1"]
[TimeControl "5400+30"]

{[%evp 18,49,-4,0,40,0,53,24,58,61,130,135,112,52,171,31,33,25,72,41,56,49,542,501,898,885,835,541,1385,1352,2405,2485,29998,29999]} 1. e4 {[%emt 0:00:45]} c5 {[%emt 0:00:06]} 2. Nf3 {[%emt 0:00:39]} e6 {[%emt 0:00:13]} 3. g3 {[%emt 0:00:24]} Nc6 {[%emt 0:00:29]} 4. Bg2 {[%emt 0:00:17]} Nf6 {[%emt 0:00:08]} 5. d3 {[%emt 0:00:59]} d5 {[%emt 0:05:33]} 6. Qe2 {[%emt 0:02:50]} Be7 {[%emt 0:07:10]} 7. O-O {[%emt 0:02:07]} O-O {[%emt 0:03:32]} 8. e5 {[%emt 0:02:00]} Nd7 {[%emt 0:00:40]} 9. c4 {[%emt 0:00:51]} d4 {[%emt 0:04:24]} 10. h4 {[%emt 0:01:43]} h6 {[%emt 0:06:30] C00: French: Unusual White 2nd moves.} 11. Re1 {[%emt 0:12:38]} Rb8 {[%emt 0:02:48]} (11... f6 $11) 12. Bf4 $1 $14 {[%emt 0:10:22]} b5 {[%emt 0:09:53] White has an edge.} 13. Nh2 {[%emt 0:11:25] [#]} Qc7 $146 {[%emt 0:27:18]} (13... Bb7 $14) ({Predecessor:} 13... Bb7 14. b3 bxc4 15. bxc4 Nb4 16. Bh3 Qc7 17. a4 Qc6 18. f3 a5 19. Rc1 Nb6 {0-1 Chigaeva,A (2087)-Petrov,A (2411) Dvorkovich Memorial op 2013 (1)}) 14. cxb5 {[%emt 0:04:43]} Rxb5 {[%emt 0:00:46] [#]} 15. Na3 {[%emt 0:00:05]} (15. Ng4 $1 $16 {[%cal Rg4h6]}) 15... Rb8 $1 {[%emt 0:00:28] [#]} 16. Nc4 {[%emt 0:10:39]} (16. Ng4 $1 $18 {[%cal Rg4h6]}) 16... Ba6 {[%emt 0:05:13]} 17. b3 {[%emt 0:02:48]} Rfd8 {[%emt 0:02:53]} (17... Rfc8 $11) 18. Qh5 {[%emt 0:08:13] Black must now prevent Ng4.} Bf8 {[%emt 0:02:47]} 19. Ng4 $1 {[%emt 0:04:44] Threatens to win with Nd6.} g6 $2 {[%emt 0:13:08][%mdl 8192] Black cannot hold the game after this.} ({Black should play} 19... Bxc4 $14 20. dxc4 Rdc8) 20. Nxh6+ $18 {[%emt 0:00:08]} Kh7 {[%emt 0:00:15]} (20... Bxh6 $142 21. Qxh6 Bxc4 22. dxc4 Ne7) 21. Be4 {[%emt 0:00:57]} (21. Nxf7+ $2 gxh5 22. Ng5+ Kg8 23. Nxe6 Qc8 24. Nxd8 Nxd8 $19) 21... Kg7 {[%emt 0:02:05]} 22. Qf3 {[%emt 0:06:53]} Ncxe5 {[%emt 0:02:11]} 23. Nxe5 {[%emt 0:00:27][%mdl 64] Remove Defender} Nxe5 {[%emt 0:00:08]} 24. Bxe5+ {[%emt 0:00:21][%mdl 64] Remove Defender} Qxe5 {[%emt 0:00:02]} 25. Qxf7+ {[%emt 0:00:22] Weighted Error Value: White=0.60/Black=1.09} 1-0